bitfinex/quotes_SOLUSD_20251030
["timestamp","ask_amount","ask_price","bid_price","bid_amount"]
[1761802445153,0.1,193.36,193.35,0.68]
[1761802445649,0.1,193.36,193.35,5.85196793]
[1761802446158,0.1,193.36,193.35,67.5941295]
[1761802446363,0.1,193.36,193.35,69.65165578]
[1761802446883,0.1,193.36,193.35,61.74216157]
[1761802447061,0.1,193.36,193.35,63.79968785]
[1761802447265,0.1,193.36,193.35,64.47968785]
[1761802448082,0.1,193.36,193.32,82.192]
[1761802448269,0.1,193.36,193.34,2.05752628]
[1761802448582,0.1,193.36,193.33,2.73752628]
[1761802448886,0.6,193.35,193.32,61.6]
[1761802449050,5.77200755,193.35,193.32,61.6]
[1761802449569,5.87170911,193.36,193.32,61.6]
[1761802449886,0.6,193.35,193.32,61.6]
[1761802450055,7.92923119,193.36,193.32,61.6]
[1761802450251,0.7,193.36,193.32,66.77269837]
[1761802450465,0.7,193.36,193.32,61.6]
[1761802451075,8.31946614,193.36,193.32,61.6]
[1761802451285,2.05752628,193.35,193.3,61.6]
[1761802451481,2.05752628,193.35,193.29,7.91102269]
[1761802451685,6.26193986,193.36,193.3,2.05752628]
[1761802451882,0.49018547,193.36,193.3,2.73752628]
[1761802452183,0.49018547,193.36,193.31,2.73752628]
[1761802452184,0.1,193.36,193.31,2.73752628]
[1761802452352,0.1,193.36,193.32,2.05752628]
[1761802452555,0.1,193.36,193.32,2.73752628]
[1761802452896,0.1,193.36,193.33,2.73752628]
[1761802453198,0.1,193.36,193.34,7.22976172]
[1761802453478,0.1,193.36,193.34,7.90976172]
[1761802453682,0.1,193.36,193.35,0.67]
[1761802454403,0.1,193.39,193.38,0.14216157]
[1761802454690,0.1,193.42,193.41,2.19968785]
[1761802454867,0.1,193.42,193.41,2.86968785]
[1761802455060,0.69,193.53,193.44,20.592]
[1761802455285,1.08018547,193.53,193.48,2.05752628]
[1761802455491,0.39018547,193.53,193.48,2.05752628]
[1761802455662,5.16713005,193.54,193.48,2.05752628]
[1761802456000,5.16713005,193.54,193.49,2.05752628]
[1761802456197,0.1,193.56,193.45,0.67]
[1761802456403,2.05752628,193.51,193.45,2.05752628]
[1761802456562,2.05752628,193.5,193.44,2.05752628]
[1761802456894,2.44771175,193.49,193.43,2.05752628]
[1761802457265,2.05752628,193.48,193.42,2.19968785]
[1761802457580,2.74752628,193.49,193.43,2.05752628]
[1761802458083,2.05752628,193.51,193.45,7.22665616]
[1761802458286,8.30515086,193.52,193.46,2.05752628]
[1761802458671,3.13771175,193.52,193.46,2.05752628]
[1761802458872,2.05752628,193.53,193.47,2.72752628]
[1761802459070,2.44771175,193.53,193.47,2.72752628]
[1761802459386,2.05752628,193.53,193.48,2.72752628]
[1761802459894,1.08018547,193.55,193.46,0.14216157]
[1761802459895,5.16695661,193.54,193.46,0.14216157]
[1761802460076,5.16695661,193.54,193.47,2.05752628]
[1761802460077,2.74752628,193.53,193.47,2.05752628]
[1761802460273,7.6151363,193.52,193.47,2.05752628]
[1761802460466,2.05752628,193.5,193.45,2.05752628]
[1761802460664,0.69,193.5,193.44,2.05752628]
[1761802460892,2.74752628,193.49,193.43,2.72752628]
[1761802461081,2.05752628,193.48,193.43,2.72752628]
[1761802461313,2.05752628,193.48,193.43,64.32752628]
[1761802461460,2.05752628,193.48,193.43,69.49733503]
[1761802462286,2.74752628,193.48,193.43,64.32752628]
[1761802462592,7.22603652,193.48,193.43,64.32752628]
[1761802462798,7.22603652,193.48,193.43,64.34752628]
[1761802462996,7.22603652,193.48,193.44,0.69]
[1761802463380,2.75752628,193.47,193.43,61.6]
[1761802463894,2.05752628,193.45,193.41,0.69]
[1761802464091,2.05752628,193.45,193.41,62.29]
[1761802464600,7.22687075,193.45,193.41,62.29]
[1761802465309,10.30917905,193.45,193.41,62.29]
[1761802466113,5.16934447,193.45,193.41,62.29]
[1761802466320,10.30917905,193.45,193.41,62.29]
[1761802466615,10.30886724,193.46,193.42,0.69]
[1761802466985,10.30886724,193.46,193.41,61.6]
[1761802467213,11.00886724,193.46,193.41,62.29]
[1761802467403,5.16903266,193.46,193.42,0.69]
[1761802467597,0.39018547,193.47,193.42,0.69]
[1761802467797,5.13983458,193.46,193.41,71.9101867]
[1761802468000,5.13983458,193.46,193.41,66.73983458]
[1761802468195,5.13983458,193.46,193.41,62.29]
[1761802468507,6.25898911,193.47,193.41,61.6]
[1761802468508,5.13983458,193.45,193.41,61.6]
[1761802468709,5.13983458,193.45,193.42,0.69]
[1761802469007,6.25898911,193.47,193.41,61.6]
[1761802469008,5.13983458,193.43,193.41,61.6]
[1761802469214,0.7,193.44,193.38,5.13983458]
[1761802469215,5.13983458,193.42,193.38,61.6]
[1761802469395,10.3103226,193.41,193.38,61.6]
[1761802469822,5.13983458,193.4,193.38,61.6]
[1761802470003,0.7,193.43,193.38,62.29]
[1761802470004,10.30995704,193.42,193.38,62.29]
[1761802470601,10.30995704,193.42,193.38,61.6]
[1761802470811,5.13983458,193.39,193.38,61.6]
[1761802471013,5.13983458,193.39,193.34,62.29]
[1761802471219,1.09018547,193.41,193.34,62.29]
[1761802471398,5.13983458,193.38,193.35,0.69]
[1761802471905,10.31108707,193.38,193.35,0.69]
[1761802472105,5.13983458,193.38,193.35,0.69]
[1761802472628,10.3107454,193.39,193.35,0.69]
[1761802473096,5.17091082,193.39,193.35,0.69]
[1761802473906,10.3107454,193.39,193.34,61.6]
[1761802474107,1.09018547,193.38,193.34,61.6]
[1761802474299,5.56109629,193.39,193.35,0.69]
[1761802474503,0.39018547,193.39,193.35,0.69]
[1761802474701,5.13983458,193.41,193.35,5.82983458]
[1761802474914,0.39018547,193.4,193.35,5.82983458]
[1761802475205,0.39018547,193.43,193.38,5.13983458]
[1761802475422,5.16925437,193.46,193.41,5.13983458]
[1761802475718,5.16925437,193.46,193.41,66.73983458]
[1761802476022,5.16876001,193.47,193.42,0.69]
[1761802476221,6.23002005,193.48,193.42,5.82983458]
[1761802476222,1.09018547,193.48,193.42,5.82983458]
[1761802476426,5.55850794,193.49,193.43,5.82983458]
[1761802476600,6.25850794,193.49,193.43,5.82983458]
[1761802476800,11.39834252,193.49,193.43,0.69]
[1761802477019,6.25850794,193.49,193.43,5.82983458]
[1761802477411,11.39834252,193.49,193.43,0.69]
[1761802477611,0.7,193.48,193.42,5.13983458]
[1761802477811,0.39018547,193.47,193.42,5.13983458]
[1761802478006,5.55910184,193.47,193.42,5.13983458]
[1761802478210,6.25910184,193.47,193.41,10.31014805]
[1761802478608,5.55910184,193.47,193.42,0.69]
[1761802478917,5.55910184,193.47,193.42,5.82983458]
[1761802479730,5.16891637,193.47,193.43,0.69]
[1761802480223,5.16891637,193.47,193.41,5.82983458]
[1761802480404,5.16891637,193.47,193.41,5.13983458]
[1761802480605,5.16891637,193.47,193.41,5.82983458]
[1761802481520,8.7448089,193.48,193.42,8.34462343]
[1761802481722,0.39018547,193.48,193.42,8.34462343]
[1761802481912,1.09018547,193.49,193.43,7.65462343]
[1761802482231,0.39018547,193.5,193.44,7.65462343]
[1761802482411,8.0448089,193.52,193.45,7.65462343]
[1761802482611,0.39018547,193.54,193.48,7.65462343]
[1761802483017,0.39018547,193.54,193.48,8.34462343]
[1761802483323,13.31117858,193.56,193.49,8.34462343]
[1761802483622,0.1,193.56,193.5,25.74247872]
[1761802483852,5.26637218,193.56,193.5,13.51258208]
[1761802484301,0.1,193.56,193.5,13.51258208]
[1761802484927,0.1,193.56,193.51,0.69]
[1761802485519,0.1,193.56,193.51,13.51210516]
[1761802485715,0.1,193.56,193.52,7.65462343]
[1761802485914,0.1,193.56,193.52,8.34462343]
[1761802486431,0.1,193.56,193.52,0.69]
[1761802487251,1.09018547,193.55,193.49,7.65462343]
[1761802487545,1.09018547,193.55,193.49,9.06712002]
[1761802487723,9.46595057,193.55,193.49,5.85798802]
[1761802487925,9.46595057,193.55,193.48,3.209132]
[1761802488137,9.46595057,193.55,193.47,0.69]
[1761802488138,3.209132,193.53,193.47,0.69]
[1761802488315,3.59931747,193.52,193.47,0.69]
[1761802488507,0.39018547,193.52,193.47,9.06786402]
[1761802488812,3.209132,193.53,193.47,9.06786402]
[1761802489015,1.09018547,193.54,193.47,9.06786402]
[1761802489016,0.39018547,193.52,193.47,9.06786402]
[1761802489425,3.209132,193.53,193.48,0.69]
[1761802489735,0.39018547,193.54,193.49,5.16822574]
[1761802490039,0.39018547,193.54,193.49,8.37735774]
[1761802490340,3.209132,193.51,193.45,3.899132]
[1761802490515,0.39018547,193.5,193.44,3.209132]
[1761802490831,3.209132,193.5,193.44,0.69]
[1761802491012,3.209132,193.51,193.45,3.899132]
[1761802491210,3.59931747,193.5,193.45,0.69]
[1761802491439,3.59931747,193.5,193.44,3.209132]
[1761802491946,0.39018547,193.5,193.44,8.37845044]
[1761802492153,0.39018547,193.5,193.45,0.69]
[1761802492368,0.1,193.56,193.49,6.418264]
[1761802492648,0.8,193.68,193.56,30.52298926]
[1761802492857,0.1,193.68,193.65,3.209132]
[1761802493007,0.1,193.68,193.62,0.14216157]
[1761802493209,3.209132,193.71,193.66,1.50976576]
[1761802493414,7.63623855,193.71,193.67,1.50976576]
[1761802493629,5.16022498,193.79,193.67,1.50976576]
[1761802493814,7.63623855,193.72,193.67,1.50976576]
[1761802494323,12.79836286,193.72,193.67,1.50976576]
[1761802494642,7.63623855,193.71,193.67,1.50976576]
[1761802494825,5.1614915,193.75,193.66,1.50976576]
[1761802495038,7.63623855,193.71,193.65,1.50976576]
[1761802495335,7.63623855,193.71,193.67,1.50976576]
[1761802495544,5.1614915,193.75,193.67,1.50976576]
[1761802495721,7.63623855,193.72,193.68,1.50976576]
[1761802495924,12.79845686,193.72,193.67,1.50976576]
[1761802496125,7.63623855,193.71,193.66,1.50976576]
[1761802496454,7.63623855,193.69,193.66,1.50976576]
[1761802497931,5.16315572,193.68,193.66,1.50976576]
[1761802498250,7.63623855,193.71,193.67,1.50976576]
[1761802498423,7.63623855,193.72,193.67,2.18976576]
[1761802498625,7.63623855,193.7,193.66,1.50976576]
[1761802498823,5.16155672,193.74,193.66,1.50976576]
[1761802499029,5.16155672,193.74,193.67,1.50976576]
[1761802499030,7.63623855,193.73,193.67,1.50976576]
[1761802499239,5.16155672,193.74,193.68,1.50976576]
[1761802499240,7.63623855,193.72,193.68,1.50976576]
[1761802499931,20.592,193.76,193.67,1.50976576]
[1761802499932,18.06488565,193.75,193.67,1.50976576]
[1761802500126,7.63623855,193.73,193.67,1.50976576]
[1761802500444,18.06488565,193.75,193.64,1.50976576]
[1761802500445,7.63623855,193.7,193.64,1.50976576]
[1761802500758,7.63623855,193.71,193.66,1.50976576]
[1761802500923,7.63623855,193.7,193.66,1.50976576]
[1761802501252,7.63623855,193.67,193.59,13.42897709]
[1761802501430,7.63623855,193.62,193.56,0.68]
[1761802501755,7.63623855,193.59,193.56,0.68]
[1761802502049,7.63623855,193.57,193.55,1.50976576]
[1761802502266,7.63623855,193.56,193.55,1.50976576]
[1761802502569,7.63623855,193.57,193.55,1.50976576]
[1761802502732,7.63623855,193.57,193.56,1.50976576]
[1761802503049,7.63623855,193.57,193.53,0.68]
[1761802503237,7.63623855,193.56,193.55,1.50976576]
[1761802503635,7.63623855,193.56,193.53,0.68]
[1761802503962,7.63623855,193.55,193.51,1.50976576]
[1761802504265,12.80293692,193.55,193.52,1.50976576]
[1761802504426,7.63623855,193.55,193.52,1.50976576]
[1761802504626,7.63623855,193.55,193.52,2.18976576]
[1761802505336,7.63623855,193.53,193.51,1.50976576]
[1761802505547,7.63623855,193.54,193.51,1.50976576]
[1761802506271,46.41752175,193.61,193.45,13.065148]
[1761802506272,33.50485673,193.61,193.53,1.50976576]
[1761802506559,5.16528925,193.6,193.53,1.50976576]
[1761802506730,7.63623855,193.57,193.53,1.50976576]
[1761802506930,7.63623855,193.58,193.56,1.50976576]
[1761802507134,7.63623855,193.57,193.56,1.50976576]
[1761802508059,20.592,193.66,193.55,1.50976576]
[1761802508060,7.63623855,193.58,193.55,1.50976576]
[1761802508232,7.63623855,193.56,193.51,1.50976576]
[1761802508429,7.63623855,193.55,193.52,1.50976576]
[1761802508859,7.63623855,193.54,193.52,1.50976576]
[1761802509048,7.63623855,193.54,193.45,0.68]
[1761802509049,7.63623855,193.53,193.45,0.68]
[1761802509256,20.592,193.57,193.45,0.68]
[1761802509257,7.63623855,193.48,193.45,0.68]
[1761802509658,7.63623855,193.46,193.43,1.50976576]
[1761802509928,7.63623855,193.45,193.4,2.18976576]
[1761802510238,7.63623855,193.45,193.4,0.68]
[1761802510430,30.38082769,193.54,193.41,0.68]
[1761802510630,7.63623855,193.46,193.41,0.68]
[1761802510934,30.38082769,193.54,193.37,12.92829849]
[1761802510935,7.63623855,193.42,193.38,1.50976576]
[1761802511138,7.63623855,193.43,193.38,2.18976576]
[1761802511453,7.63623855,193.44,193.39,0.68]
[1761802511639,7.63623855,193.45,193.42,1.50976576]
[1761802512158,12.8055924,193.45,193.39,2.18976576]
[1761802512378,7.63623855,193.43,193.38,1.50976576]
[1761802512579,7.63623855,193.4,193.36,2.18976576]
[1761802512875,7.63623855,193.4,193.37,1.50976576]
[1761802513060,7.63623855,193.4,193.37,2.18976576]
[1761802513260,7.63623855,193.4,193.37,0.68]
[1761802513468,7.63623855,193.42,193.38,0.71]
[1761802513862,7.63623855,193.41,193.36,1.50976576]
[1761802514035,12.80679619,193.41,193.36,1.50976576]
[1761802514238,7.63623855,193.42,193.39,1.50976576]
[1761802515736,7.63623855,193.42,193.37,0.71]
[1761802515737,7.63623855,193.41,193.37,2.21976576]
[1761802516439,7.63623855,193.41,193.37,0.71]
[1761802516630,7.63623855,193.41,193.38,1.50976576]
[1761802517440,12.80670337,193.41,193.38,1.50976576]
[1761802517637,12.80670337,193.41,193.37,0.71]
[1761802517853,5.17046482,193.41,193.38,1.50976576]
[1761802518052,7.63623855,193.41,193.38,1.50976576]
[1761802518667,7.63623855,193.41,193.38,2.21976576]
[1761802520275,12.80671459,193.41,193.38,2.21976576]
[1761802520644,7.63623855,193.39,193.35,63.10976576]
[1761802520863,5.17047604,193.41,193.35,63.10976576]
[1761802520864,7.63623855,193.37,193.35,61.6]
[1761802521061,18.09638473,193.41,193.35,63.10976576]
[1761802521062,7.63623855,193.38,193.35,63.10976576]
[1761802521645,7.63623855,193.37,193.33,2.21976576]
[1761802522165,7.63623855,193.37,193.34,2.21976576]
[1761802522960,7.63623855,193.37,193.33,1.50976576]
[1761802523151,7.63623855,193.34,193.3,2.16976576]
[1761802523352,7.63623855,193.35,193.32,1.50976576]
[1761802523541,7.63623855,193.36,193.32,1.50976576]
[1761802524070,7.63623855,193.35,193.32,1.50976576]
[1761802524241,7.63623855,193.36,193.33,0.66]
[1761802524439,7.63623855,193.36,193.32,1.50976576]
[1761802524673,7.63623855,193.36,193.32,0.66]
[1761802524970,7.63623855,193.36,193.32,2.16976576]
[1761802525381,7.63623855,193.36,193.32,1.50976576]
[1761802525674,7.63623855,193.34,193.31,1.50976576]
[1761802526257,7.63623855,193.33,193.3,1.50976576]
[1761802526476,7.63623855,193.32,193.3,1.50976576]
[1761802526860,7.63623855,193.31,193.26,2.16976576]
[1761802527058,7.63623855,193.3,193.26,1.50976576]
[1761802527289,9.78882769,193.39,193.26,2.16976576]
[1761802527495,12.93001733,193.35,193.27,0.66]
[1761802527774,7.63623855,193.32,193.29,1.50976576]
[1761802528152,7.63623855,193.32,193.27,0.66]
[1761802528352,7.63623855,193.32,193.29,1.50976576]
[1761802528981,5.17261514,193.33,193.29,1.50976576]
[1761802529182,7.63623855,193.32,193.29,1.50976576]
[1761802529355,5.171433,193.37,193.3,0.66]
[1761802529684,7.63623855,193.33,193.29,1.50976576]
[1761802529856,18.10001551,193.37,193.29,1.50976576]
[1761802529857,7.63623855,193.32,193.29,1.50976576]
[1761802530056,18.10001551,193.37,193.29,1.50976576]
[1761802530277,7.63623855,193.33,193.29,2.16976576]
[1761802530786,7.63623855,193.32,193.27,0.66]
[1761802531852,7.63623855,193.32,193.27,2.16976576]
[1761802532058,7.63623855,193.32,193.28,1.50976576]
[1761802532257,7.63623855,193.32,193.28,0.66]
[1761802532482,12.80915235,193.32,193.28,0.66]
[1761802532858,9.78882769,193.37,193.28,0.66]
[1761802533076,7.63623855,193.32,193.28,0.66]
[1761802533484,7.63623855,193.3,193.25,2.16976576]
[1761802533661,7.63623855,193.28,193.26,1.50976576]
[1761802533863,7.63623855,193.29,193.26,1.50976576]
[1761802534064,5.17250297,193.33,193.26,1.50976576]
[1761802534378,5.17250297,193.33,193.27,0.66]
[1761802534566,9.78882769,193.37,193.28,1.50976576]
[1761802534567,7.63623855,193.32,193.28,1.50976576]
[1761802535084,7.63623855,193.32,193.29,0.66]
[1761802535263,5.17170045,193.36,193.29,0.66]
[1761802535467,7.63623855,193.33,193.29,0.66]
[1761802535965,7.63623855,193.34,193.29,2.16976576]
[1761802536471,7.63623855,193.33,193.3,0.66]
[1761802536776,5.17233963,193.34,193.28,1.50976576]
[1761802536777,7.63623855,193.32,193.28,1.50976576]
[1761802536975,7.63623855,193.31,193.27,1.50976576]
[1761802537168,7.63623855,193.3,193.26,2.16976576]
[1761802537787,7.63623855,193.31,193.27,2.16976576]
[1761802537957,7.63623855,193.31,193.27,0.66]
[1761802538359,7.63623855,193.29,193.26,1.50976576]
[1761802538659,7.63623855,193.29,193.26,2.16976576]
[1761802539492,7.63623855,193.3,193.27,0.66]
[1761802539666,7.63623855,193.3,193.28,1.50976576]
[1761802540481,7.63623855,193.3,193.27,2.16976576]
[1761802540786,7.63623855,193.29,193.26,1.50976576]
[1761802540991,5.17335008,193.3,193.26,1.50976576]
[1761802540992,7.63623855,193.28,193.26,2.16976576]
[1761802542360,35.64599271,193.37,193.26,2.16976576]
[1761802542361,7.63623855,193.29,193.26,2.16976576]
[1761802543372,5.14818499,193.29,193.26,2.16976576]
[1761802543692,5.14818499,193.29,193.25,5.17463258]
[1761802543693,5.14818499,193.29,193.27,2.16976576]
[1761802543896,5.14818499,193.29,193.25,5.17463258]
[1761802543897,5.14818499,193.29,193.26,1.50976576]
[1761802544064,5.14818499,193.28,193.26,0.66]
[1761802544895,5.14818499,193.3,193.27,1.50976576]
[1761802545781,5.14818499,193.29,193.26,0.66]
[1761802545990,5.14818499,193.27,193.24,1.50976576]
[1761802546186,5.14818499,193.28,193.24,2.16976576]
[1761802546400,5.14818499,193.28,193.25,2.16976576]
[1761802546778,5.14818499,193.28,193.26,0.66]
[1761802547582,5.14818499,193.28,193.24,2.16976576]
[1761802547793,5.14818499,193.28,193.25,2.16976576]
[1761802547989,5.14818499,193.29,193.25,2.16976576]
[1761802548303,5.14818499,193.29,193.26,0.66]
[1761802549575,5.17170045,193.36,193.26,10.98249646]
[1761802549780,5.14818499,193.33,193.29,1.50976576]
[1761802550179,5.14818499,193.33,193.29,2.16976576]
[1761802550396,5.14818499,193.33,193.3,0.66]
[1761802550998,9.78882769,193.37,193.3,0.66]
[1761802550999,33.52015276,193.38,193.3,7.34303732]
[1761802551197,5.14818499,193.33,193.3,7.34303732]
[1761802551385,5.14818499,193.33,193.31,1.50976576]
[1761802551583,0.49023423,193.45,193.31,1.50976576]
[1761802551584,12.92637686,193.41,193.34,1.50976576]
[1761802551886,5.14818499,193.38,193.34,1.50976576]
[1761802552090,5.14818499,193.38,193.34,2.16976576]
[1761802552287,5.14818499,193.37,193.34,2.16976576]
[1761802552980,14.93701268,193.44,193.34,2.16976576]
[1761802553180,5.14818499,193.37,193.34,2.16976576]
[1761802553601,5.14818499,193.36,193.34,2.16976576]
[1761802553991,5.14818499,193.37,193.34,2.16976576]
[1761802555186,5.14818499,193.36,193.34,2.16976576]
[1761802555383,12.92605377,193.41,193.35,0.71]
[1761802555611,2.05772638,193.37,193.35,1.50976576]
[1761802556204,2.05772638,193.38,193.35,2.21976576]
[1761802556409,2.05772638,193.38,193.36,0.71]
[1761802557391,2.05772638,193.38,193.35,1.50976576]
[1761802557588,2.05772638,193.38,193.35,2.21976576]
[1761802557790,2.05772638,193.37,193.35,2.21976576]
[1761802558692,5.17092646,193.39,193.34,61.6]
[1761802558693,2.05772638,193.36,193.34,61.6]
[1761802558934,2.05772638,193.35,193.34,61.6]
[1761802559708,5.17155314,193.37,193.32,2.21976576]
[1761802559898,5.17115475,193.39,193.33,0.71]
[1761802560099,12.92588125,193.42,193.34,1.50976576]
[1761802560411,2.05772638,193.38,193.34,1.50976576]
[1761802560585,33.51788125,193.42,193.35,0.71]
[1761802560792,2.05772638,193.38,193.35,0.71]
[1761802560997,2.05772638,193.36,193.33,63.10976576]
[1761802561196,2.05772638,193.34,193.33,61.6]
[1761802561396,2.05772638,193.34,193.32,1.50976576]
[1761802561588,2.05772638,193.34,193.3,1.50976576]
[1761802561589,2.05772638,193.33,193.3,1.50976576]
[1761802561803,2.05772638,193.33,193.32,1.50976576]
[1761802562389,2.05772638,193.33,193.31,0.71]
[1761802562583,2.05772638,193.33,193.31,2.21976576]
[1761802562989,2.05772638,193.33,193.31,0.71]
[1761802563190,2.05772638,193.33,193.31,2.21976576]
[1761802563390,5.14606981,193.33,193.31,2.21976576]
[1761802564110,5.24113933,193.34,193.31,2.21976576]
[1761802564422,0.09506952,193.34,193.32,2.21976576]
[1761802564614,0.09506952,193.34,193.33,0.71]
[1761802565088,0.09506952,193.34,193.31,63.81976576]
[1761802565289,5.14606981,193.32,193.31,61.6]
[1761802566695,5.14606981,193.32,193.29,2.21976576]
[1761802566894,5.14606981,193.31,193.3,0.71]
[1761802567508,5.14606981,193.31,193.28,1.50976576]
[1761802567831,5.14606981,193.29,193.27,2.21976576]
[1761802568120,10.32010614,193.28,193.24,0.71]
[1761802568424,5.14606981,193.27,193.24,0.71]
[1761802568624,5.14606981,193.26,193.23,1.50976576]
[1761802568923,5.14606981,193.25,193.22,1.70976576]
[1761802569119,5.17403633,193.28,193.23,1.50976576]
[1761802569323,5.17250297,193.33,193.26,1.50976576]
[1761802569515,5.17250297,193.33,193.26,2.21976576]
[1761802569516,5.14606981,193.3,193.26,2.21976576]
[1761802569693,5.14606981,193.31,193.27,1.50976576]
[1761802569895,5.14606981,193.33,193.29,1.50976576]
[1761802570410,5.14606981,193.33,193.29,2.21976576]
[1761802570796,0.09506952,193.34,193.31,1.50976576]
[1761802570999,0.09506952,193.34,193.32,0.71]
[1761802571211,0.09506952,193.34,193.31,1.50976576]
[1761802571522,5.14606981,193.33,193.3,1.50976576]
[1761802571700,5.14606981,193.33,193.29,1.50976576]
[1761802571896,5.14606981,193.33,193.29,2.21976576]
[1761802572709,10.31879059,193.33,193.29,1.50976576]
[1761802573423,5.14606981,193.33,193.31,1.50976576]
[1761802573632,0.09506952,193.34,193.31,1.50976576]
[1761802573819,0.09506952,193.34,193.31,2.20976576]
[1761802574706,0.09506952,193.34,193.29,5.17352867]
[1761802574707,0.09506952,193.34,193.32,7.38239377]
[1761802574909,0.09506952,193.34,193.33,6.65583557]
[1761802575126,0.09506952,193.34,193.33,7.45335683]
[1761802576022,10.41337477,193.34,193.31,1.50976576]
[1761802576225,5.14606981,193.32,193.31,1.50976576]
[1761802576521,5.14606981,193.32,193.29,2.20976576]
[1761802577223,5.14606981,193.32,193.3,0.7]
[1761802577431,5.14606981,193.32,193.29,2.20976576]
[1761802577799,5.14606981,193.31,193.29,0.7]
[1761802578109,5.14606981,193.3,193.27,1.50976576]
[1761802578325,5.14606981,193.29,193.27,2.20976576]
[1761802578629,18.10390245,193.33,193.28,1.50976576]
[1761802578831,5.14606981,193.29,193.28,1.50976576]
[1761802579145,5.14606981,193.29,193.27,2.20976576]
[1761802579343,5.17314252,193.31,193.27,2.20976576]
[1761802579629,5.14606981,193.29,193.27,2.20976576]
[1761802580831,5.17314252,193.31,193.28,2.20976576]
[1761802580832,5.14606981,193.3,193.28,2.20976576]
[1761802581227,5.14606981,193.3,193.28,1.50976576]
[1761802581531,0.10714199,193.29,193.28,1.50976576]
[1761802582433,0.10714199,193.29,193.28,2.20976576]
[1761802585424,0.10714199,193.29,193.27,1.50976576]
[1761802585613,2.16611233,193.29,193.27,2.22976576]
[1761802586467,2.05897034,193.28,193.26,63.10976576]
[1761802586625,2.05897034,193.28,193.26,2.22976576]
[1761802586815,2.05897034,193.28,193.26,0.72]
[1761802587638,2.16611233,193.29,193.28,1.50976576]
[1761802589036,2.16611233,193.29,193.26,0.72]
[1761802589215,2.05897034,193.28,193.26,0.72]
[1761802589415,2.16611233,193.29,193.26,0.72]
[1761802589840,2.16611233,193.29,193.24,1.50976576]
[1761802589841,2.05897034,193.28,193.24,1.50976576]
[1761802590020,2.05897034,193.27,193.24,61.6]
[1761802590232,2.05897034,193.27,193.25,0.72]
[1761802590429,2.05897034,193.26,193.23,63.82976576]
[1761802590634,2.05897034,193.27,193.25,1.50976576]
[1761802591027,2.05897034,193.27,193.25,2.22976576]
[1761802592968,2.05897034,193.26,193.22,1.70976576]
[1761802593139,2.05897034,193.23,193.22,1.70976576]
[1761802593539,18.10943258,193.27,193.22,1.70976576]
[1761802593843,2.05897034,193.24,193.22,2.42976576]
[1761802595443,2.05897034,193.24,193.22,0.92]
[1761802595640,2.05897034,193.24,193.22,2.42976576]
[1761802596341,5.17417009,193.27,193.22,2.42976576]
[1761802596542,2.05897034,193.25,193.22,2.42976576]
[1761802596868,2.05897034,193.27,193.23,2.22976576]
[1761802597052,2.05897034,193.28,193.23,2.22976576]
[1761802597260,2.05897034,193.28,193.24,2.22976576]
[1761802597760,2.05897034,193.28,193.25,0.72]
[1761802598350,2.05897034,193.27,193.25,0.72]
[1761802598969,2.05897034,193.28,193.25,0.72]
[1761802599163,2.05897034,193.28,193.24,1.50976576]
[1761802599341,2.05897034,193.28,193.25,0.72]
[1761802600238,2.05897034,193.28,193.26,1.50976576]
[1761802601540,0.11375317,193.27,193.26,1.50976576]
[1761802603072,7.34686307,193.27,193.25,1.50976576]
[1761802603369,2.05897034,193.26,193.24,1.50976576]
[1761802603546,2.05897034,193.26,193.24,2.22976576]
[1761802603942,5.28793925,193.27,193.24,1.50976576]
[1761802604163,2.05897034,193.26,193.23,1.50976576]
[1761802604546,2.05897034,193.26,193.22,0.92]
[1761802604547,2.05897034,193.26,193.24,2.22976576]
[1761802605451,3.21853491,193.26,193.23,1.50976576]
[1761802605643,3.21853491,193.26,193.23,2.22976576]
[1761802606250,3.21853491,193.24,193.22,1.70976576]
[1761802607067,3.21853491,193.24,193.22,2.42976576]
[1761802609273,5.17459882,193.26,193.23,0.72]
[1761802609451,3.21853491,193.25,193.22,1.70976576]
[1761802610048,3.21853491,193.25,193.22,2.42976576]
[1761802610862,3.21853491,193.25,193.23,0.72]
[1761802611174,3.21853491,193.25,193.22,2.42976576]
[1761802611570,3.21853491,193.25,193.23,0.72]
[1761802612677,3.21853491,193.25,193.22,1.70976576]
[1761802612972,3.21853491,193.25,193.22,2.38976576]
[1761802613169,3.21853491,193.25,193.22,1.70976576]
[1761802613359,3.21853491,193.25,193.22,2.38976576]
[1761802613981,3.21853491,193.25,193.23,0.68]
[1761802614676,3.21853491,193.25,193.23,2.18976576]